bitfinex-derivatives/quotes_SOLF0:USTF0_20250625
["timestamp","ask_amount","ask_price","bid_price","bid_amount"]
[1750845147093,10.27572327,145.46,145.44,6.872]
[1750845147794,45.48,145.5,145.46,6.8709]
[1750845147995,3.40432327,145.49,145.46,6.8709]
[1750845148295,6.8703,145.48,145.46,6.871]
[1750845148893,3.40432327,145.49,145.42,3.40432327]
[1750845149295,45.48,145.5,145.42,3.40432327]
[1750845149495,10.27432327,145.49,145.46,6.8708]
[1750845149896,2.3561,145.53,145.46,3.40432327]
[1750845150194,6.8686,145.52,145.44,3.40432327]
[1750845150397,5.76042327,145.53,145.44,7.95922327]
[1750845150592,3.40432327,145.53,145.44,7.95922327]
[1750845151299,637.98,145.55,145.48,3.40432327]
[1750845151486,44.58,145.55,145.49,2.3941]
[1750845151691,9.2484,145.58,145.5,3.40432327]
[1750845151890,50.36702327,145.58,145.5,3.40432327]
[1750845152387,3.40432327,145.57,145.5,3.40432327]
[1750845153300,54.84992327,145.58,145.5,3.40432327]
[1750845153898,47.98432327,145.58,145.5,3.40432327]
[1750845154398,47.98432327,145.58,145.49,4.5918]
[1750845154399,3.40432327,145.56,145.49,7.99612327]
[1750845154902,10.27102327,145.56,145.53,6.8675]
[1750845155195,3.40432327,145.56,145.49,7.99612327]
[1750845155499,44.58,145.58,145.49,4.5918]
[1750845155500,3.40432327,145.54,145.49,4.5918]
[1750845155901,3.40432327,145.54,145.52,6.868]
[1750845156097,3.40432327,145.54,145.49,2.3941]
[1750845156289,3.40432327,145.54,145.45,5.73422327]
[1750845156290,3.40432327,145.52,145.45,4.5879]
[1750845156490,3.40432327,145.52,145.49,6.8695]
[1750845156690,10.27282327,145.52,145.49,6.8695]
[1750845157102,3.40432327,145.52,145.5,6.8692]
[1750845158103,3.40432327,145.52,145.49,6.8695]
[1750845158706,10.27282327,145.52,145.49,6.8695]
[1750845160501,10.27282327,145.52,145.5,6.8693]
[1750845162207,6.8688,145.51,145.45,10.34062327]
[1750845162409,6.8688,145.51,145.45,6.9363]
[1750845162708,10.27292327,145.52,145.49,6.8694]
[1750845163110,10.27292327,145.52,145.45,6.9363]
[1750845163905,3.40432327,145.52,145.5,6.869]
[1750845164516,6.8681,145.53,145.5,6.869]
[1750845164709,3.40432327,145.52,145.5,6.869]
[1750845165008,10.27302327,145.52,145.49,6.8696]
[1750845166511,10.27302327,145.52,145.5,6.8693]
[1750845167715,6.8688,145.51,145.49,6.8695]
[1750845168112,3.40432327,145.5,145.45,6.9363]
[1750845168316,3.40432327,145.48,145.41,47.98432327]
[1750845168516,3.40432327,145.47,145.41,44.58]
[1750845168912,10.27502327,145.47,145.45,6.8715]
[1750845169420,3.40432327,145.47,145.45,6.8715]
[1750845169912,3.40432327,145.47,145.46,6.8712]
[1750845170718,3.40432327,145.49,145.41,47.98432327]
[1750845171017,44.58,145.5,145.43,3.40432327]
[1750845171219,44.58,145.5,145.44,6.9911]
[1750845171719,44.58,145.5,145.49,6.8697]
[1750845172220,10.27252327,145.53,145.5,6.869]
[1750845172417,3.40432327,145.53,145.45,3.40432327]
[1750845172718,6.8686,145.52,145.49,6.8693]
[1750845173116,10.27292327,145.52,145.45,3.40432327]
[1750845173723,3.40432327,145.52,145.5,6.869]
[1750845173922,3.40432327,145.52,145.45,3.40432327]
[1750845174221,10.27292327,145.52,145.45,44.58]
[1750845174426,10.27292327,145.52,145.45,47.98432327]
[1750845175124,3.40432327,145.52,145.5,6.8689]
[1750845175322,47.98432327,145.54,145.45,47.98432327]
[1750845175620,47.98432327,145.54,145.47,3.40432327]
[1750845175921,54.85202327,145.54,145.47,3.40432327]
[1750845176121,2.1971,145.57,145.49,3.40432327]
[1750845176316,47.16432327,145.57,145.5,2.2977]
[1750845176524,54.03062327,145.57,145.54,6.8671]
[1750845176820,47.16432327,145.57,145.54,6.8671]
[1750845178123,54.03042327,145.57,145.54,6.8671]
[1750845179022,6.8665,145.56,145.54,6.8671]
[1750845179224,6.8665,145.56,145.53,6.8677]
[1750845179925,6.8665,145.56,145.54,6.8673]
[1750845180424,54.03042327,145.57,145.54,6.8673]
[1750845180721,47.16432327,145.57,145.5,4.5849]
[1750845180921,47.16432327,145.57,145.51,3.40432327]
[1750845180922,43.76,145.57,145.51,3.40432327]
[1750845181227,43.76,145.57,145.56,6.8664]
[1750845182320,43.76,145.57,145.55,6.8668]
[1750845184327,43.76,145.57,145.51,3.40432327]
[1750845184328,43.76,145.57,145.56,6.8664]
[1750845184625,43.76,145.57,145.51,3.40432327]
[1750845184825,47.16432327,145.57,145.5,10.37172327]
[1750845185229,47.16432327,145.57,145.53,6.8674]
[1750845185425,6.8667,145.56,145.5,10.37172327]
[1750845186327,6.8667,145.56,145.53,6.8674]
[1750845187127,6.8669,145.55,145.53,6.8674]
[1750845187526,47.16432327,145.57,145.53,6.8674]
[1750845187732,6.8668,145.56,145.53,6.8674]
[1750845189334,6.8669,145.55,145.53,6.8674]
[1750845189630,47.16432327,145.57,145.54,6.8674]
[1750845191228,47.16432327,145.57,145.55,6.8668]
[1750845192028,43.76,145.57,145.55,6.8668]
[1750845192232,43.76,145.57,145.56,6.8664]
[1750845193039,43.76,145.57,145.55,6.8667]
[1750845193335,50.626,145.57,145.55,6.8667]
[1750845194338,43.76,145.57,145.56,6.8664]
[1750845197938,6.8655,145.58,145.56,6.8664]
[1750845199038,6.8655,145.58,145.55,6.8667]
[1750845199639,6.8655,145.58,145.56,6.8663]
[1750845199832,10.26982327,145.58,145.56,6.8663]
[1750845203436,6.8655,145.58,145.56,6.8663]
[1750845203735,10.26982327,145.58,145.56,6.8663]
[1750845206149,6.866,145.57,145.55,6.8666]
[1750845206346,3.40432327,145.58,145.51,3.40432327]
[1750845206745,10.27002327,145.58,145.56,6.8664]
[1750845207445,45.9486,145.6,145.51,3.40432327]
[1750845207649,3.40432327,145.59,145.51,3.40432327]
[1750845208248,6.8657,145.58,145.56,6.8662]
[1750845209151,3.40432327,145.57,145.5,4.5849]
[1750845209447,3.40432327,145.57,145.5,7.98922327]
[1750845209649,6.8653,145.59,145.5,7.98922327]
[1750845209849,49.35292327,145.6,145.5,7.98922327]
[1750845211144,6.8656,145.58,145.56,6.8662]
[1750845211346,49.35292327,145.6,145.5,7.98922327]
[1750845212052,10.27002327,145.58,145.5,4.5849]
[1750845212349,10.27002327,145.58,145.5,7.98922327]
[1750845213251,10.27002327,145.58,145.56,6.8664]
[1750845214146,3.39791733,145.57,145.5,4.5849]
[1750845215058,10.26475434,145.56,145.53,6.8675]
[1750845216150,6.8662,145.57,145.5,4.5849]
[1750845216354,6.8662,145.57,145.5,7.98295434]
[1750845216756,6.8662,145.57,145.54,6.8669]
[1750845218953,3.39805434,145.56,145.5,2.2977]
[1750845219456,10.26475434,145.56,145.53,6.8676]
[1750845221461,6.8671,145.55,145.53,6.8676]
[1750845223256,3.39805434,145.56,145.5,2.2977]
[1750845223460,3.39805434,145.54,145.47,166.74946698]
[1750845223660,3.39805434,145.52,145.47,121.35906698]
[1750845224459,6.8693,145.5,145.48,6.87]
[1750845224759,3.39805434,145.52,145.48,6.87]
[1750845224760,46.37805434,145.52,145.48,6.87]
[1750845225460,6.8692,145.51,145.48,6.87]
[1750845225760,6.8692,145.51,145.49,6.8697]
[1750845225959,53.24665434,145.52,145.47,121.35906698]
[1750845226159,46.37805434,145.52,145.47,121.35906698]
[1750845226963,46.37805434,145.52,145.46,3.39805434]
[1750845227157,53.24635434,145.52,145.5,6.869]
[1750845228863,49.8483,145.52,145.5,6.869]
[1750845229057,42.98,145.52,145.5,6.869]
[1750845232965,10.26565434,145.54,145.47,2.3391]
[1750845233466,10.26565434,145.54,145.52,6.8682]
[1750845233768,10.26565434,145.54,145.47,2.3391]
[1750845234366,10.26565434,145.54,145.51,6.8686]
[1750845235770,10.26565434,145.54,145.52,6.8683]
[1750845236570,10.26565434,145.54,145.51,6.8685]
[1750845237070,42.98,145.55,145.54,6.8674]
[1750845237272,42.26,145.58,145.5,3.39805434]
[1750845237572,6.8662,145.57,145.51,2.268]
[1750845238269,6.8662,145.57,145.54,6.8669]
[1750845238471,6.8662,145.57,145.51,2.268]
[1750845240377,6.8662,145.57,145.55,6.8667]
[1750845242779,6.8658,145.58,145.56,6.8664]
[1750845243079,3.39805434,145.58,145.51,2.268]
[1750845243485,6.866,145.57,145.54,6.8669]
[1750845245187,6.866,145.57,145.55,6.8669]
[1750845245377,3.39805434,145.58,145.51,2.268]
[1750845246983,6.8662,145.57,145.55,6.8667]
[1750845247495,3.39805434,145.58,145.55,6.8667]
[1750845247688,3.39805434,145.58,145.51,2.268]
[1750845248190,6.866,145.57,145.51,2.268]
[1750845248590,6.866,145.57,145.55,6.8668]
[1750845251694,10.26375434,145.58,145.55,6.8668]
[1750845252395,10.26375434,145.58,145.56,6.8663]
[1750845254199,10.26375434,145.58,145.55,6.8667]
[1750845257802,10.26375434,145.58,145.56,6.8664]
[1750845259307,10.26375434,145.58,145.55,6.8666]
[1750845260403,6.8662,145.57,145.55,6.8666]
[1750845268212,2.17430232,145.56,145.55,6.8666]
[1750845268507,2.17430232,145.56,145.49,2.3851]
[1750845268716,2.17430232,145.51,145.49,2.3851]
[1750845269103,2.17430232,145.52,145.49,2.3851]
[1750845269407,2.17430232,145.54,145.49,4.55940232]
[1750845269609,2.17430232,145.54,145.5,2.17430232]
[1750845269908,2.17430232,145.54,145.49,4.55940232]
[1750845270109,2.17430232,145.53,145.52,6.8679]
[1750845272216,48.3872,145.55,145.52,6.8679]
[1750845272217,51.78587016,145.55,145.52,6.8679]
[1750845272615,51.78587016,145.55,145.53,6.8678]
[1750845273905,44.91867016,145.55,145.49,2.3851]
[1750845274517,51.78567016,145.55,145.53,6.8676]
[1750845274817,44.91867016,145.55,145.53,6.8676]
[1750845275014,44.91867016,145.55,145.49,2.3851]
[1750845275413,10.26487016,145.57,145.49,47.30377016]
[1750845279213,10.26487016,145.57,145.55,6.8669]
[1750845281525,10.26487016,145.57,145.54,6.8671]
[1750845281723,3.39867016,145.57,145.49,47.30377016]
[1750845282125,3.39867016,145.55,145.52,6.8681]
[1750845282518,10.26587016,145.55,145.52,6.8681]
[1750845283016,10.26587016,145.55,145.49,43.9051]
[1750845283524,3.39867016,145.55,145.49,43.9051]
[1750845283924,6.8666,145.56,145.49,47.30377016]
[1750845285429,6.8669,145.55,145.53,6.8676]
[1750845285623,10.26557016,145.55,145.53,6.8676]
[1750845286429,10.26557016,145.55,145.52,6.868]
[1750845286729,10.26557016,145.55,145.49,43.9051]
[1750845287027,10.26557016,145.55,145.52,6.868]
[1750845288429,10.26557016,145.55,145.53,6.8678]
[1750845292232,2.1749865,145.54,145.53,6.8678]
[1750845292738,9.0423865,145.54,145.52,6.8681]
[1750845293034,2.1749865,145.53,145.52,6.8681]
[1750845299936,43.0549865,145.53,145.47,2.3391]
[1750845300144,2.1749865,145.48,145.43,2.2175]
[1750845300340,2.1749865,145.44,145.41,4.6531]
[1750845300543,2.1749865,145.42,145.41,2.3788]
[1750845300841,2.1749865,145.42,145.39,2.2175]
[1750845301045,40.88,145.49,145.41,2.1749865]
[1750845301344,40.88,145.49,145.42,4.5537865]
[1750845301345,2.1749865,145.46,145.42,4.5537865]
[1750845301639,2.1749865,145.46,145.45,6.8716]
[1750845302242,10.27231952,145.48,145.45,6.8716]
[1750845303545,10.27231952,145.48,145.46,6.8711]
[1750845304543,10.27231952,145.48,145.45,6.8714]
[1750845305243,3.40191952,145.48,145.46,6.8711]
[1750845306344,10.27231952,145.48,145.45,6.8715]
[1750845306536,3.40191952,145.46,145.42,2.3788]
[1750845307034,3.40191952,145.46,145.45,6.8716]
[1750845307944,3.40191952,145.46,145.39,2.2175]
[1750845308145,3.40191952,145.43,145.39,2.2175]
[1750845308340,3.40191952,145.43,145.42,6.8728]
[1750845309240,3.40191952,145.43,145.39,2.2175]
[1750845309445,3.40191952,145.41,145.39,2.2175]
[1750845309745,3.40191952,145.41,145.4,6.8739]
[1750845310142,3.40191952,145.41,145.39,2.2175]
[1750845310546,3.40191952,145.41,145.39,9.0918]
[1750845310746,3.40191952,145.41,145.37,2.2852]
[1750845311046,3.40191952,145.41,145.38,6.8747]
[1750845311548,3.40191952,145.41,145.37,2.2852]
[1750845311741,6.8732,145.42,145.38,6.8748]
[1750845311939,3.40191952,145.4,145.37,2.2852]
[1750845312152,3.40191952,145.4,145.39,6.8742]
[1750845313054,3.40191952,145.43,145.37,2.2852]
[1750845314352,3.40191952,145.41,145.34,2.3117]
[1750845314648,3.40191952,145.41,145.39,6.8742]
[1750845315450,6.8733,145.42,145.4,6.874]
[1750845315749,3.40191952,145.41,145.4,6.874]
[1750845315951,3.40191952,145.41,145.39,6.8743]
[1750845319256,6.8723,145.44,145.34,2.3117]
[1750845319453,3.40191952,145.43,145.35,3.40191952]
[1750845319757,10.27451952,145.43,145.4,6.8737]
[1750845320455,10.27451952,145.43,145.41,6.8734]
[1750845320754,10.27451952,145.43,145.35,3.40191952]
[1750845321356,10.27451952,145.43,145.4,6.8736]
[1750845323260,3.40191952,145.41,145.4,6.8736]
[1750845323760,3.40191952,145.41,145.39,6.8742]
[1750845324458,10.27541952,145.41,145.39,6.8742]
[1750845325158,3.40191952,145.41,145.39,6.8742]
[1750845326361,3.40191952,145.41,145.4,6.874]
[1750845328455,40.9,145.45,145.35,3.40191952]
[1750845328661,40.9,145.45,145.37,3.40191952]
[1750845328856,3.40191952,145.46,145.37,3.40191952]
[1750845328857,3.40191952,145.46,145.38,2.2461]
[1750845329059,3.40191952,145.46,145.39,3.40191952]
[1750845329254,3.40191952,145.46,145.39,7.94721952]
[1750845330263,3.40191952,145.46,145.39,4.5453]
[1750845330460,3.40191952,145.44,145.39,4.5453]
[1750845330962,10.27401952,145.44,145.42,6.8727]
[1750845331962,3.40191952,145.44,145.42,6.8727]
[1750845332665,10.27411952,145.44,145.42,6.8727]
[1750845335672,3.40191952,145.44,145.42,6.8727]
[1750845335862,3.40191952,145.44,145.39,4.5453]
[1750845336669,10.27401952,145.44,145.42,6.8727]
[1750845339474,10.27401952,145.44,145.41,6.8733]
[1750845339677,3.40191952,145.42,145.39,2.2409]
[1750845341175,10.27501952,145.42,145.4,6.8738]
[1750845342074,3.40191952,145.42,145.4,6.8738]
[1750845342477,43.74191952,145.44,145.39,2.2409]
[1750845342775,50.61431952,145.44,145.39,2.2409]
[1750845343077,50.61431952,145.44,145.42,6.873]
[1750845345380,50.61573745,145.44,145.42,6.873]
[1750845346576,6.8726,145.43,145.41,6.8733]
[1750845348583,43.74333745,145.44,145.39,2.2409]
[1750845348777,3.40333745,145.42,145.39,2.2409]
[1750845348977,3.40333745,145.4,145.33,160.03196739]
[1750845349178,3.40333745,145.4,145.34,2.2981]
[1750845349483,3.40333745,145.4,145.38,6.8746]
[1750845349882,10.27733745,145.4,145.38,6.8746]
[1750845350583,3.40333745,145.4,145.38,6.8746]
[1750845351782,6.8742,145.4,145.38,6.8746]
[1750845352882,10.27882215,145.41,145.38,6.8746]
[1750845353984,6.874,145.4,145.38,6.8746]
[1750845355881,3.40502215,145.39,145.36,6.8755]
[1750845356183,3.40502215,145.39,145.34,2.2981]
[1750845356684,6.8753,145.38,145.34,2.2981]
[1750845358088,6.8753,145.38,145.35,6.8759]
[1750845358582,6.8753,145.38,145.34,2.2981]
[1750845358789,6.8753,145.38,145.36,6.8758]
[1750845360290,10.28032215,145.38,145.36,6.8758]
[1750845360492,40.36,145.4,145.34,2.2981]
[1750845360691,40.36,145.4,145.34,5.70312215]
[1750845360895,3.40502215,145.39,145.34,2.2981]
[1750845361394,10.27982215,145.39,145.37,6.8752]
[1750845361696,3.40502215,145.39,145.37,6.8752]
[1750845361994,3.40502215,145.39,145.38,6.8749]
[1750845362395,10.27952215,145.39,145.37,6.8752]
[1750845362697,3.40502215,145.39,145.34,2.2981]
[1750845362886,3.40502215,145.37,145.34,2.2981]
[1750845363087,3.40502215,145.37,145.36,6.8759]
[1750845364987,3.40502215,145.39,145.34,2.2981]
[1750845365188,10.27952215,145.39,145.34,2.2981]
[1750845365484,10.27952215,145.39,145.37,6.8751]
[1750845366791,3.40502215,145.39,145.38,6.8749]
[1750845367494,3.40502215,145.39,145.34,2.2981]
[1750845367793,3.40502215,145.37,145.34,2.2981]
[1750845367996,3.40502215,145.37,145.36,6.8756]
[1750845375301,43.76502215,145.4,145.34,2.2981]
[1750845375898,50.63922215,145.4,145.38,6.8748]
[1750845377200,43.76502215,145.4,145.39,6.8745]
[1750845378898,50.63902215,145.4,145.38,6.8747]
[1750845379106,40.36,145.4,145.34,42.1381]
[1750845379404,3.40502215,145.39,145.38,6.8746]
[1750845382005,3.40502215,145.43,145.36,3.40502215]
[1750845382205,3.40502215,145.43,145.37,2.2667]
[1750845382606,3.40502215,145.43,145.38,2.3407]
[1750845383611,6.8724,145.44,145.38,2.3407]
[1750845383809,3.40502215,145.43,145.38,2.3407]
[1750845384010,10.27762215,145.43,145.38,2.3407]
[1750845384613,10.27762215,145.43,145.39,6.8742]
[1750845385112,3.40502215,145.43,145.38,9.2155]
[1750845385316,3.40502215,145.39,145.34,42.1381]
[1750845385914,6.8752,145.38,145.35,6.8761]
[1750845386218,6.8756,145.37,145.35,6.8761]
[1750845386513,3.40502215,145.37,145.32,114.18314838]
[1750845386714,6.8771,145.34,145.32,109.61994838]
[1750845386911,3.40502215,145.33,145.29,2.4381]
[1750845387118,3.40502215,145.34,145.26,43.22502215]
[1750845387415,3.40502215,145.34,145.32,6.8775]
[1750845388419,3.40502215,145.34,145.33,6.8773]
[1750845389022,3.40502215,145.34,145.32,6.8776]
[1750845389414,3.40502215,145.34,145.27,5.84312215]
[1750845389623,10.28212215,145.34,145.32,6.8776]
[1750845390325,3.40502215,145.34,145.33,6.8773]
[1750845390619,3.40502215,145.34,145.27,5.84312215]
[1750845390825,3.40502215,145.34,145.27,2.4381]
[1750845391025,10.28212215,145.34,145.32,6.8775]
[1750845391218,3.40502215,145.34,145.32,6.8775]
[1750845391826,3.40502215,145.34,145.33,6.8773]
[1750845392524,46.6961,145.36,145.33,6.8773]
[1750845392727,3.40502215,145.35,145.27,5.84312215]
[1750845393327,3.40502215,145.35,145.33,6.8771]
[1750845394523,10.28152215,145.35,145.32,6.8775]
[1750845395829,10.28152215,145.35,145.33,6.8773]
[1750845396424,10.28152215,145.35,145.27,5.84312215]
[1750845396723,3.40502215,145.33,145.27,2.4381]
[1750845397929,10.28152215,145.35,145.27,2.4381]
[1750845398131,39.82,145.36,145.27,2.4381]
[1750845398332,3.40502215,145.35,145.33,6.877]
[1750845398933,3.40502215,145.35,145.32,6.8775]
[1750845399533,6.8769,145.34,145.32,6.8775]
[1750845400529,10.28162215,145.35,145.32,6.8775]
[1750845402035,10.28162215,145.35,145.33,6.8773]
[1750845402430,3.40502215,145.35,145.28,3.40502215]
[1750845402629,39.82,145.36,145.28,3.40502215]
[1750845402836,3.40502215,145.37,145.28,3.40502215]
[1750845403836,3.40502215,145.37,145.36,6.8759]
[1750845404238,39.4,145.39,145.31,43.9818]
[1750845404438,42.80502215,145.39,145.37,6.8751]
[1750845405741,49.67972215,145.39,145.37,6.8751]
[1750845406239,49.67972215,145.39,145.36,6.8756]
[1750845407244,49.67972215,145.39,145.37,6.8754]
[1750845408741,6.8749,145.38,145.36,6.8757]
[1750845409440,49.67972215,145.39,145.36,6.8757]
[1750845409640,42.80502215,145.39,145.36,6.8757]
[1750845410136,6.8752,145.38,145.36,6.8757]
[1750845411243,49.67972215,145.39,145.32,5.82702215]
[1750845411445,3.40502215,145.39,145.32,5.82702215]
[1750845411744,3.40502215,145.41,145.32,5.82702215]
[1750845412146,10.27882215,145.41,145.38,6.8745]
[1750845412335,10.27882215,145.41,145.32,5.82702215]
[1750845412540,3.40502215,145.43,145.34,3.40502215]
[1750845412741,10.27782215,145.43,145.41,6.8735]
[1750845413644,6.8731,145.42,145.37,7.0315]
[1750845413846,10.27812215,145.42,145.37,7.0315]
[1750845415147,10.27812215,145.42,145.4,6.8738]
[1750845415352,10.27812215,145.42,145.37,7.0315]
[1750845415650,10.27812215,145.42,145.4,6.8736]
[1750845415854,6.8728,145.43,145.37,7.0315]
[1750845416350,3.40502215,145.42,145.33,3.40502215]
[1750845416551,3.40502215,145.4,145.33,10.30322215]
[1750845417150,10.27942215,145.4,145.37,6.8751]
[1750845417451,3.40502215,145.4,145.37,6.8751]
[1750845417854,6.8745,145.39,145.37,6.8751]
[1750845418045,3.40502215,145.4,145.37,6.8751]
[1750845418347,10.27932215,145.4,145.37,6.8751]
[1750845418551,3.40502215,145.4,145.37,6.8751]
[1750845418849,3.40502215,145.4,145.33,10.30322215]
[1750845419453,10.27932215,145.4,145.38,6.8749]
[1750845420955,6.8745,145.39,145.37,6.8753]
[1750845421556,10.27932215,145.4,145.37,6.8753]
[1750845421853,10.27932215,145.4,145.33,10.30322215]
[1750845421854,10.27932215,145.4,145.38,6.8749]
[1750845423554,3.40502215,145.4,145.38,6.8749]
[1750845424755,10.27902215,145.4,145.38,6.8749]
[1750845426357,6.8733,145.42,145.39,6.8745]
[1750845426557,3.40502215,145.41,145.39,6.8745]
[1750845426957,10.27862215,145.41,145.39,6.8745]
[1750845427261,3.40502215,145.41,145.33,6.8982]
[1750845427455,3.40502215,145.39,145.33,6.8982]
[1750845427757,3.40502215,145.39,145.38,6.8747]
[1750845428151,10.27872215,145.41,145.38,6.8747]
[1750845429462,10.27872215,145.41,145.39,6.8744]
[1750845431771,3.40502215,145.41,145.4,6.874]
[1750845431966,3.40502215,145.43,145.34,17.15862215]
[1750845432370,3.40502215,145.43,145.41,6.8732]
[1750845432673,3.40502215,145.43,145.33,6.8982]
[1750845432863,3.40502215,145.39,145.33,6.8982]
[1750845433265,3.40502215,145.39,145.33,4.6214]
[1750845433871,6.8752,145.38,145.33,4.6214]
[1750845434474,10.27972215,145.39,145.36,6.8755]
[1750845434870,6.8747,145.39,145.36,6.8755]
[1750845435071,10.27972215,145.39,145.36,6.8755]
[1750845435277,6.875,145.38,145.36,6.8755]
[1750845435868,6.875,145.38,145.35,6.8761]
[1750845436270,10.28002215,145.38,145.35,6.8761]
[1750845436466,6.8754,145.37,145.35,6.8761]
[1750845437171,3.40502215,145.38,145.35,6.8761]
[1750845437172,10.28022215,145.38,145.35,6.8761]
[1750845437571,10.28022215,145.38,145.36,6.8758]
[1750845437772,6.8752,145.38,145.36,6.8758]
[1750845439171,10.27972215,145.39,145.36,6.8758]
[1750845440678,6.875,145.38,145.36,6.8758]
[1750845441379,10.27972215,145.39,145.37,6.8754]
[1750845442780,3.40502215,145.39,145.38,6.8749]
[1750845443081,3.40502215,145.41,145.32,3.40502215]
[1750845443378,3.40502215,145.41,145.34,3.40502215]
[1750845443878,5.66372215,145.43,145.34,8.05802215]
[1750845444079,3.40502215,145.43,145.34,8.05802215]
[1750845444278,10.28144667,145.38,145.35,6.8759]
[1750845444979,6.8752,145.38,145.36,6.8758]
[1750845445282,3.40624466,145.39,145.36,6.8758]
[1750845446179,6.875,145.38,145.36,6.8758]
[1750845446578,3.40624466,145.39,145.36,6.8758]
[1750845446780,10.28114466,145.39,145.36,6.8758]
[1750845446981,3.40624466,145.39,145.36,6.8758]
[1750845447381,6.875,145.38,145.36,6.8758]
[1750845447780,3.40624466,145.39,145.31,3.40624466]
[1750845447971,10.28094466,145.39,145.31,3.40624466]
[1750845448172,3.40624466,145.39,145.31,3.40624466]
[1750845448678,3.40624466,145.39,145.36,6.8757]
[1750845448871,3.40624466,145.39,145.31,3.40624466]
[1750845449683,10.28114466,145.39,145.36,6.8756]
[1750845450882,10.28114466,145.39,145.37,6.8754]
[1750845451086,10.28114466,145.39,145.31,3.40624466]
[1750845451287,6.8751,145.38,145.31,3.40624466]
[1750845452187,3.40624466,145.38,145.31,3.40624466]
[1750845452483,3.40624466,145.38,145.37,6.8754]
[1750845458788,3.40624466,145.39,145.38,6.8749]
[1750845462393,10.28074466,145.39,145.37,6.875]
[1750845467996,10.27967979,145.4,145.38,6.8749]
[1750845472091,6.8745,145.39,145.37,6.8752]
[1750845472392,6.8745,145.39,145.3,2.382]
[1750845472393,3.40557979,145.38,145.3,2.382]
[1750845472795,6.8756,145.37,145.35,6.8761]
[1750845472991,10.28260256,145.37,145.35,6.8761]
[1750845473194,10.28260256,145.37,145.3,2.382]
[1750845473390,3.40700256,145.35,145.3,2.382]
[1750845473890,3.40700256,145.35,145.29,4.653]
[1750845474394,3.40700256,145.33,145.29,4.653]
[1750845474693,3.40700256,145.31,145.26,2.2306]
[1750845476298,10.28570256,145.31,145.26,2.2306]
[1750845477097,3.40700256,145.31,145.26,2.2306]
[1750845477696,3.40700256,145.31,145.28,6.8794]
[1750845477894,3.40700256,145.29,145.22,4.6884]
[1750845478096,3.40700256,145.29,145.22,7.0228]
[1750845478298,10.28650256,145.29,145.26,6.8804]
[1750845480099,3.40700256,145.29,145.27,6.8799]
[1750845480598,4.7075,145.35,145.23,3.40700256]
[1750845480900,3.40700256,145.31,145.25,3.40700256]
[1750845481200,2.2937,145.35,145.32,6.8778]
[1750845481499,2.2937,145.35,145.25,3.40700256]
[1750845481500,3.40700256,145.34,145.27,3.40700256]
[1750845481693,3.40700256,145.34,145.28,4.7412]
[1750845481898,3.40700256,145.34,145.33,6.8773]
[1750845485507,3.40700256,145.36,145.34,6.8764]
[1750845487009,3.40700256,145.36,145.28,10.43190256]
[1750845487808,3.40700256,145.36,145.34,6.8765]
[1750845490409,3.40700256,145.36,145.28,10.43190256]
[1750845491011,3.40700256,145.36,145.34,6.8764]
[1750845491419,10.28290256,145.36,145.34,6.8764]
[1750845494215,3.40700256,145.36,145.34,6.8764]
[1750845494513,3.40700256,145.36,145.35,6.8764]
[1750845495518,66.06571452,145.4,145.32,3.40700256]
[1750845495706,3.40700256,145.4,145.33,2.335]
[1750845496714,3.40700256,145.4,145.39,6.8745]
[1750845497517,3.40700256,145.41,145.4,6.8736]
[1750845500517,10.28000256,145.43,145.4,6.8736]
[1750845500722,3.40700256,145.43,145.41,6.8735]
[1750845501326,3.40700256,145.44,145.36,3.40700256]
[1750845503121,10.27920256,145.44,145.42,6.873]
[1750845503313,2.3162,145.49,145.4,3.40700256]
[1750845503613,3.40700256,145.47,145.4,3.40700256]
[1750845504421,3.40700256,145.47,145.44,6.8719]
[1750845505123,6.8712,145.46,145.43,6.8723]
[1750845505514,3.40700256,145.47,145.39,5.76730256]
[1750845505821,6.8718,145.45,145.42,6.8729]
[1750845506123,6.8718,145.45,145.39,5.76730256]
[1750845506325,6.8718,145.45,145.43,6.8725]
[1750845507120,6.8714,145.46,145.43,6.8725]
[1750845507328,3.40700256,145.47,145.43,6.8725]